fUST/lending_fUST_20260702
["ID","MTS","AMOUNT","RATE_DAILY","PERIOD"]
[426832799,1782922014000,-306.01476127,0.000279,3]
[426832878,1782922238000,-500.96428482,0.00026804,2]
[426832879,1782922238000,-31.70893873,0.000279,3]
[426832882,1782922238000,-2530.62778044,0.00028239,2]
[426832884,1782922238000,-1728.58187797,0.00028239,2]
[426832881,1782922238000,-815.67089955,0.00028215,2]
[426832883,1782922238000,-1283.37616499,0.00028239,2]
[426832880,1782922238000,-154.0,0.00028,2]
[426832897,1782922244000,-797.70390222,0.00028239,2]
[426832896,1782922244000,-256.2,0.00028239,2]
[426832942,1782922246000,-500.0,0.00028873,2]
[426832919,1782922246000,-328.11174948,0.00028239,2]
[426832924,1782922246000,-345.98335691,0.00028796,2]
[426832923,1782922246000,-500.0,0.00028796,2]
[426832929,1782922246000,-396.39822345,0.00028873,2]
[426832926,1782922246000,-500.0,0.00028873,2]
[426832921,1782922246000,-500.0,0.00028796,2]
[426832940,1782922246000,-500.0,0.00028873,2]
[426832936,1782922246000,-500.0,0.00028873,2]
[426832935,1782922246000,-500.0,0.00028873,2]
[426832933,1782922246000,-500.0,0.00028873,2]
[426832938,1782922246000,-500.0,0.00028873,2]
[426832931,1782922246000,-500.0,0.00028873,2]
[426832975,1782922247000,-500.0,0.00028873,2]
[426832969,1782922247000,-500.0,0.00028873,2]
[426832976,1782922247000,-500.0,0.00028873,2]
[426832970,1782922247000,-500.0,0.00028873,2]
[426832971,1782922247000,-500.0,0.00028873,2]
[426832973,1782922247000,-434.92675209,0.00028873,2]
[426832974,1782922247000,-65.07324791,0.00028873,2]
[426832984,1782922247000,-500.0,0.00028873,2]
[426832972,1782922247000,-500.0,0.00028873,2]
[426832994,1782922247000,-487.0,0.00029255,2]
[426832993,1782922247000,-487.0,0.00029255,2]
[426832983,1782922247000,-500.0,0.00028873,2]
[426832982,1782922247000,-500.0,0.00028873,2]
[426832981,1782922247000,-500.71140904,0.00028873,2]
[426832977,1782922247000,-500.0,0.00028873,2]
[426832980,1782922247000,-234.33879334,0.00028873,2]
[426832953,1782922247000,-500.0,0.00028873,2]
[426832978,1782922247000,-500.0,0.00028873,2]
[426832946,1782922247000,-500.0,0.00028873,2]
[426832944,1782922247000,-500.0,0.00028873,2]
[426832948,1782922247000,-500.0,0.00028873,2]
[426832955,1782922247000,-500.0,0.00028873,2]
[426832961,1782922247000,-500.0,0.00028873,2]
[426832959,1782922247000,-500.0,0.00028873,2]
[426832979,1782922247000,-500.0,0.00028873,2]
[426832950,1782922247000,-322.39095211,0.00028873,2]
[426832985,1782922247000,-500.0,0.00028873,2]
[426832951,1782922247000,-500.0,0.00028873,2]
[426832963,1782922247000,-500.0,0.00028873,2]
[426832966,1782922247000,-500.0,0.00028873,2]
[426832965,1782922247000,-500.0,0.00028873,2]
[426832968,1782922247000,-500.0,0.00028873,2]
[426832957,1782922247000,-500.0,0.00028873,2]
[426832988,1782922247000,-154.0,0.00029,2]
[426832986,1782922247000,-348.40214116,0.00028873,2]
[426832990,1782922247000,-205.74800844,0.00029142,7]
[426833009,1782922247000,-500.0,0.00029529,2]
[426833021,1782922247000,-500.0,0.00029762,2]
[426833020,1782922247000,-500.0,0.00029762,2]
[426833011,1782922247000,-469.21664722,0.000297,2]
[426833013,1782922247000,-159.58360082,0.000297,2]
[426833014,1782922247000,-291.14631282,0.000297,2]
[426832992,1782922247000,-487.0,0.00029255,2]
[426833017,1782922247000,-231.26843884,0.00029762,2]
[426833018,1782922247000,-500.0,0.00029762,2]
[426833015,1782922247000,-236.0316604,0.000297,2]
[426833016,1782922247000,-150.0,0.000297,2]
[426833022,1782922247000,-489.65844819,0.00029762,2]
[426833025,1782922247000,-1.33778424,0.00029762,2]
[426833023,1782922247000,-10.34155181,0.00029762,2]
[426833024,1782922247000,-361.24491425,0.00029762,2]
[426833012,1782922247000,-288.46714473,0.000297,2]
[426833010,1782922247000,-326.17106497,0.000297,2]
[426833019,1782922247000,-500.0,0.00029762,2]
[426833001,1782922247000,-500.0,0.00029255,2]
[426833004,1782922247000,-151.0,0.000293,11]
[426832989,1782922247000,-160.0,0.0002906,3]
[426832987,1782922247000,-192.75,0.00028987,15]
[426832991,1782922247000,-166.66666667,0.00029227,2]
[426832995,1782922247000,-487.0,0.00029255,2]
[426832999,1782922247000,-487.0,0.00029255,2]
[426832998,1782922247000,-487.0,0.00029255,2]
[426832996,1782922247000,-487.0,0.00029255,2]
[426833000,1782922247000,-667.86,0.00029255,2]
[426832997,1782922247000,-487.0,0.00029255,2]
[426833007,1782922247000,-197.73825154,0.00029375,7]
[426833008,1782922247000,-186.0,0.00029435,2]
[426833003,1782922247000,-151.0,0.000293,15]
[426833002,1782922247000,-170.19479348,0.00029257,7]
[426833005,1782922247000,-151.0,0.000293,20]
[426833006,1782922247000,-151.0,0.000293,20]
[426833032,1782922431000,4643.19,0.00029257,30]
[426833038,1782922818000,1586.545,0.00019,120]
[426833081,1782923432000,-55.18198559,0.00029,2]
[426833078,1782923432000,-1487.95327887,0.00028367,2]
[426833067,1782923432000,-154.0,0.00026017,2]
[426833069,1782923432000,-170.73769563,0.00027397,7]
[426833073,1782923432000,-458.55581876,0.000279,7]
[426833076,1782923432000,-648.40202456,0.00028229,2]
[426833080,1782923432000,-458.55581876,0.00028458,7]
[426833075,1782923432000,-154.0,0.00028,2]
[426833071,1782923432000,-154.0,0.00027791,2]
[426833116,1782923439000,-166.66666667,0.00029228,2]
[426833113,1782923439000,-103.77379874,0.00029,2]
[426833114,1782923439000,-524.67858492,0.00029157,2]
[426833119,1782923439000,-382.23909521,0.00029246,2]
[426833115,1782923439000,-814.34556207,0.00029157,2]
[426833122,1782923439000,-500.0,0.00029246,2]
[426833118,1782923439000,-500.0,0.00029246,2]
[426833117,1782923439000,-500.0,0.00029246,2]
[426833120,1782923439000,-192.70431037,0.00029246,2]
[426833121,1782923439000,-185.5177899,0.00029246,2]
[426833123,1782923439000,-2627.78,0.00029247,3]
[426833124,1782923439000,-1313.89,0.00029247,3]
[426833125,1782923439000,-656.95,0.00029247,3]
[426833126,1782923439000,-328.47,0.00029247,3]
[426833129,1782923439000,-161.88790719,0.00029256,2]
[426833128,1782923439000,-492.73,0.00029247,3]
[426833130,1782923439000,-500.0,0.00029256,2]
[426833131,1782923439000,-500.0,0.00029256,2]
[426833127,1782923439000,-164.24,0.00029247,3]
[426833132,1782923439000,-245.80835969,0.00029256,2]
[426833141,1782923442000,-500.0,0.00029256,2]
[426833139,1782923442000,-500.0,0.00029256,2]
[426833140,1782923442000,-500.0,0.00029256,2]
[426833137,1782923442000,-254.19164031,0.00029256,2]
[426833142,1782923442000,-500.0,0.00029256,2]
[426833144,1782923442000,-10199.81042554,0.00029257,30]
[426833143,1782923442000,-500.0,0.00029256,2]
[426833138,1782923442000,-502.4701047,0.00029256,2]
[426833408,1782923447000,-2500.2236952,0.00029257,30]
[426833366,1782923447000,-1797.08140095,0.00029257,30]
[426833543,1782923974000,1386.55572853,0.0001,2]
[426833542,1782923974000,1892.4101247,0.0001,2]
[426833541,1782923974000,800.0,0.0001,2]
[426833544,1782923982000,5565.54188993,0.000126,2]
[426833546,1782924035000,801.02959035,0.0001,2]
[426833625,1782924638000,-500.0,0.00019999,2]
[426833623,1782924638000,-500.0,0.00019999,2]
[426833624,1782924638000,-500.0,0.00019999,2]
[426833628,1782924638000,-153.58212169,0.00019999,2]
[426833627,1782924638000,-500.0,0.00019999,2]
[426833629,1782924638000,-500.0,0.00019999,2]
[426833626,1782924638000,-651.72907329,0.00019999,2]
[426833630,1782924638000,-19526.82253548,0.0002,2]
[426833632,1782924638000,-169.20732085,0.000219,30]
[426833631,1782924638000,-14947.26932684,0.0002,2]
[426833656,1782924646000,-313.43951996,0.0002683,2]
[426833657,1782924646000,-261.19959997,0.0002683,2]
[426833655,1782924646000,-606.33161676,0.0002683,2]
[426833658,1782924646000,-248.70162602,0.0002683,2]
[426833654,1782924646000,-421.48510786,0.00026829,2]
[426833653,1782924646000,-269.75046903,0.00026829,2]
[426833652,1782924646000,-1721.74042279,0.00026,30]
[426833651,1782924646000,-5.70810205,0.000219,30]
[426833669,1782924986000,311.76,0.00014355,2]
[426833670,1782924986000,311.76,0.00014443,2]
[426833671,1782924986000,311.76,0.00014532,2]
[426833672,1782924986000,311.76,0.00014621,2]
[426833676,1782924987000,311.76,0.00014977,2]
[426833675,1782924987000,311.76,0.00014888,2]
[426833674,1782924987000,311.76,0.00014799,2]
[426833673,1782924987000,311.76,0.0001471,2]
[426833679,1782925055000,248.43058549,0.00012503,2]
[426833680,1782925118000,228.55613865,0.00012428,2]
[426833683,1782925385000,243.57166133,0.0001,2]
[426833684,1782925482000,554.37661282,0.000126,2]
[426833686,1782925726000,156.0,0.00014966,2]
[426833692,1782925766000,-311.76,0.00015332,2]
[426833695,1782925766000,-311.76,0.00015599,2]
[426833694,1782925766000,-311.76,0.0001551,2]
[426833691,1782925766000,-311.76,0.00015243,2]
[426833693,1782925766000,-311.76,0.00015421,2]
[426833690,1782925766000,-311.76,0.00015154,2]
[426833689,1782925766000,-311.76,0.00015066,2]
[426833696,1782925766000,-46.46239257,0.00015688,2]
[426833912,1782925838000,-154.0,0.00026017,2]
[426833910,1782925838000,-169.583212,0.00025758,2]
[426833908,1782925838000,-151.0,0.00025371,2]
[426833906,1782925838000,-151.0,0.00025371,2]
[426833903,1782925838000,-500.0,0.0002537,2]
[426833914,1782925838000,-589.8116455,0.00026404,2]
[426833911,1782925838000,-360.88853265,0.00025857,2]
[426833907,1782925838000,-151.0,0.00025371,2]
[426833913,1782925838000,-189.66815616,0.0002634,2]
[426833909,1782925838000,-4619.220896,0.00025372,2]
[426833926,1782925838000,-509.425704,0.0002644,2]
[426833927,1782925838000,-509.425704,0.0002644,2]
[426833916,1782925838000,-377.47945312,0.00026404,2]
[426833925,1782925838000,-4619.220896,0.0002644,2]
[426833924,1782925838000,-259.55,0.00026404,2]
[426833928,1782925838000,-509.425704,0.0002644,2]
[426833917,1782925838000,-848.47944075,0.00026404,2]
[426833918,1782925838000,-158.44595859,0.00026404,2]
[426833921,1782925838000,-407.02503249,0.00026404,2]
[426833919,1782925838000,-181.08109554,0.00026404,2]
[426833915,1782925838000,-330.29452148,0.00026404,2]
[426833902,1782925838000,-500.0,0.0002537,2]
[426833923,1782925838000,-151.0,0.00026404,2]
[426833897,1782925838000,-500.0,0.0002537,2]
[426833884,1782925838000,-156.0,0.00019985,2]
[426833878,1782925838000,-265.29760743,0.00015688,2]
[426833882,1782925838000,-311.76,0.00015866,2]
[426833889,1782925838000,-179.051,0.00023485,2]
[426833885,1782925838000,-9068.2519509,0.00021116,2]
[426833880,1782925838000,-311.76,0.00015777,2]
[426833887,1782925838000,-242.091756,0.00022338,7]
[426833886,1782925838000,-4917.8788618,0.00022228,2]
[426833883,1782925838000,-1289.28428749,0.00019289,2]
[426833904,1782925838000,-200.0,0.0002537,2]
[426833888,1782925838000,-333.93906519,0.00022995,7]
[426833891,1782925838000,-229.15,0.00024148,2]
[426833892,1782925838000,-500.0,0.0002537,2]
[426833890,1782925838000,-363.137634,0.00023652,7]
[426833893,1782925838000,-175.5893048,0.0002537,2]
[426833894,1782925838000,-500.0,0.0002537,2]
[426833895,1782925838000,-500.0,0.0002537,2]
[426833899,1782925838000,-500.0,0.0002537,2]
[426833898,1782925838000,-641.05724508,0.0002537,2]
[426833900,1782925838000,-500.0,0.0002537,2]
[426833901,1782925838000,-500.0,0.0002537,2]
[426833920,1782925838000,-282.93921177,0.00026404,2]
[426833896,1782925838000,-500.0,0.0002537,2]
[426833929,1782925838000,-509.425704,0.0002644,2]
[426833951,1782925838000,-178.44345578,0.00027508,2]
[426833956,1782925838000,-151.0,0.00027772,7]
[426833958,1782925838000,-154.0,0.00027791,2]
[426833960,1782925838000,-509.425704,0.00027793,7]
[426833962,1782925838000,-509.425704,0.00027793,7]
[426833965,1782925838000,-187.47759,0.00028254,2]
[426833957,1782925838000,-241.547769,0.00027772,7]
[426833959,1782925838000,-509.425704,0.00027793,7]
[426833964,1782925838000,-10478.12746284,0.00027872,2]
[426833968,1782925838000,-500.0,0.00028574,2]
[426833963,1782925838000,-262.73,0.00027794,2]
[426833966,1782925838000,-151.793293,0.00028254,7]
[426833967,1782925838000,-164.27843048,0.00028306,2]
[426833961,1782925838000,-509.425704,0.00027793,7]
[426833969,1782925838000,-4619.220896,0.00028576,2]
[426833970,1782925838000,-509.425704,0.00028576,7]
[426833974,1782925838000,-151.5,0.00028973,3]
[426833973,1782925838000,-509.425709,0.00028576,7]
[426833972,1782925838000,-509.425704,0.00028576,7]
[426833971,1782925838000,-509.425704,0.00028576,7]
[426833922,1782925838000,-151.0,0.00026404,2]
[426833952,1782925838000,-151.0,0.00027508,7]
[426833953,1782925838000,-445.72454499,0.00027536,2]
[426833905,1782925838000,-151.0,0.0002537,2]
[426833946,1782925838000,-509.425704,0.00027507,7]
[426833931,1782925838000,-151.0,0.0002644,2]
[426833932,1782925838000,-151.0,0.0002644,2]
[426833940,1782925838000,-509.425704,0.00027407,7]
[426833930,1782925838000,-151.0,0.0002644,2]
[426833933,1782925838000,-500.0,0.0002644,2]
[426833941,1782925838000,-509.425704,0.00027407,7]
[426833934,1782925838000,-500.0,0.00026714,2]
[426833936,1782925838000,-500.0,0.00026988,2]
[426833942,1782925838000,-151.0,0.00027407,7]
[426833939,1782925838000,-509.425704,0.00027407,7]
[426833937,1782925838000,-500.0,0.00027262,2]
[426833935,1782925838000,-496.46308893,0.000268,2]
[426833950,1782925838000,-4619.220896,0.00027508,2]
[426833945,1782925838000,-509.425704,0.00027507,7]
[426833948,1782925838000,-151.0,0.00027507,7]
[426833947,1782925838000,-509.425704,0.00027507,7]
[426833938,1782925838000,-509.425704,0.00027407,7]
[426833955,1782925838000,-446.0,0.00027772,2]
[426833954,1782925838000,-188.313,0.00027772,2]
[426833943,1782925838000,-945.13512408,0.00027496,2]
[426833944,1782925838000,-509.425704,0.00027507,7]
[426833949,1782925838000,-151.0,0.00027507,7]
[426833991,1782925839000,-225.4,0.00029247,3]
[426833990,1782925839000,-450.79,0.00029247,3]
[426834004,1782925839000,-157.02,0.00029256,2]
[426834005,1782925839000,-157.02,0.00029256,2]
[426833996,1782925839000,-3460.0,0.00029256,2]
[426833995,1782925839000,-3460.0,0.00029256,2]
[426833997,1782925839000,-193.60897641,0.00029256,2]
[426834007,1782925839000,-157.02,0.00029256,2]
[426833998,1782925839000,-152.0,0.00029256,2]
[426833989,1782925839000,-901.59,0.00029247,3]
[426833999,1782925839000,-152.0,0.00029256,2]
[426834001,1782925839000,-157.02,0.00029256,2]
[426834006,1782925839000,-157.02,0.00029256,2]
[426833992,1782925839000,-676.2,0.00029247,3]
[426833986,1782925839000,-188.05702739,0.00029227,2]
[426833988,1782925839000,-1591.04,0.00029247,3]
[426833980,1782925839000,-151.5,0.00028973,3]
[426833981,1782925839000,-229.06006615,0.00028973,3]
[426833975,1782925839000,-177.0362706,0.00028973,3]
[426833976,1782925839000,-151.5,0.00028973,3]
[426833979,1782925839000,-151.5,0.00028973,3]
[426833978,1782925839000,-151.5,0.00028973,3]
[426833984,1782925839000,-505.4496427,0.00029156,2]
[426833977,1782925839000,-151.5,0.00028973,3]
[426833993,1782925839000,-9200.0,0.00029256,2]
[426833994,1782925839000,-3597.3341457,0.00029256,2]
[426833987,1782925839000,-166.66666666,0.00029227,2]
[426834003,1782925839000,-157.02,0.00029256,2]
[426833985,1782925839000,-546.61698932,0.00029226,2]
[426833983,1782925839000,-2040.14613735,0.00029,35]
[426833982,1782925839000,-173.18,0.00028987,15]
[426834000,1782925839000,-157.0,0.00029256,2]
[426834002,1782925839000,-157.02,0.00029256,2]
[426834041,1782925839000,-1532489.81596283,0.00029257,30]
[426834025,1782925839000,-581.34369397,0.00029256,2]
[426834028,1782925839000,-412.74970002,0.00029256,2]
[426834030,1782925839000,-737.05303575,0.00029256,2]
[426834032,1782925839000,-309.7879312,0.00029256,2]
[426834031,1782925839000,-1060.29501511,0.00029256,2]
[426834029,1782925839000,-471.71394288,0.00029256,2]
[426834027,1782925839000,-1306.71528812,0.00029256,2]
[426834034,1782925839000,-261.38784968,0.00029256,2]
[426834035,1782925839000,-376.02210504,0.00029256,2]
[426834039,1782925839000,-249.88827005,0.00029256,2]
[426834038,1782925839000,-228.37366452,0.00029256,2]
[426834036,1782925839000,-258.15660933,0.00029256,2]
[426834037,1782925839000,-199.82695646,0.00029256,2]
[426834040,1782925839000,-4673.82773479,0.00029256,40]
[426834017,1782925839000,-154.0,0.00029256,2]
[426834026,1782925839000,-908.34952183,0.00029256,2]
[426834012,1782925839000,-154.0,0.00029256,2]
[426834023,1782925839000,-181.66990437,0.00029256,2]
[426834024,1782925839000,-327.00582786,0.00029256,2]
[426834015,1782925839000,-154.0,0.00029256,2]
[426834009,1782925839000,-152.0,0.00029256,2]
[426834019,1782925839000,-154.0,0.00029256,2]
[426834016,1782925839000,-154.0,0.00029256,2]
[426834020,1782925839000,-941.93398287,0.00029256,2]
[426834011,1782925839000,-154.0,0.00029256,2]
[426834018,1782925839000,-154.0,0.00029256,2]
[426834021,1782925839000,-218.65223629,0.00029256,2]
[426834010,1782925839000,-152.0,0.00029256,2]
[426834008,1782925839000,-153.2412416,0.00029256,2]
[426834014,1782925839000,-154.0,0.00029256,2]
[426834022,1782925839000,-151.0,0.00029256,7]
[426834033,1782925839000,-313.66541962,0.00029256,2]
[426834013,1782925839000,-154.0,0.00029256,2]
[426834055,1782925840000,-845.36974873,0.00029257,30]
[426834121,1782927032000,-152.09824954,0.00027072,3]
[426834111,1782927032000,-186.01983793,0.000219,30]
[426834113,1782927032000,-371.37377192,0.00026404,2]
[426834115,1782927032000,-390.05997153,0.00026404,2]
[426834124,1782927032000,-182.01,0.00029035,15]
[426834126,1782927032000,-176.83568538,0.00029057,2]
[426834117,1782927032000,-166.66666667,0.00026972,2]
[426834119,1782927032000,-40.05175046,0.00027072,3]
[426834143,1782927032000,-280.92817862,0.00029227,2]
[426834122,1782927032000,-182.01,0.00028985,15]
[426834129,1782927032000,-182.01,0.00029085,15]
[426834133,1782927032000,-158.0567968,0.00029154,2]
[426834134,1782927032000,-300.0,0.00029171,2]
[426834131,1782927032000,-182.02,0.00029135,15]
[426834138,1782927032000,-166.66666667,0.00029224,2]
[426834136,1782927032000,-471.75299976,0.00029172,2]
[426834140,1782927032000,-188.05702739,0.00029224,2]
[426834128,1782927032000,-166.66666667,0.00029057,2]
[426834257,1782927038000,-1000.0,0.00029231,2]
[426834256,1782927038000,-1000.0,0.00029231,2]
[426834258,1782927038000,-147.51290152,0.00029231,2]
[426834255,1782927038000,-66.46404745,0.00029227,2]
[426834321,1782927043000,-474.21771536,0.00029231,2]
[426834354,1782927046000,-1000.0,0.00029246,2]
[426834352,1782927046000,-378.26938312,0.00029231,2]
[426834365,1782927047000,-500.0,0.00029252,2]
[426834363,1782927047000,-500.0,0.00029252,2]
[426834364,1782927047000,-500.0,0.00029252,2]
[426834366,1782927047000,-500.0,0.00029252,2]
[426834371,1782927047000,-500.0,0.00029252,2]
[426834370,1782927047000,-500.0,0.00029252,2]
[426834368,1782927047000,-500.0,0.00029252,2]
[426834367,1782927047000,-500.0,0.00029252,2]
[426834373,1782927047000,-500.0,0.00029252,2]
[426834362,1782927047000,-500.0,0.00029252,2]
[426834361,1782927047000,-792.23,0.00029247,3]
[426834359,1782927047000,-264.07,0.00029247,3]
[426834358,1782927047000,-528.13,0.00029247,3]
[426834356,1782927047000,-1056.27,0.00029247,3]
[426834369,1782927047000,-500.0,0.00029252,2]
[426834385,1782927047000,-155.56894346,0.00029256,2]
[426834380,1782927047000,-483.0,0.00029254,120]
[426834383,1782927047000,-169.0,0.00029256,2]
[426834389,1782927047000,-1118.97629654,0.00029256,2]
[426834390,1782927047000,-513.32690443,0.00029256,2]
[426834391,1782927047000,-94665.65063594,0.00029257,30]
[426834386,1782927047000,-280.02409823,0.00029256,2]
[426834381,1782927047000,-211.2,0.00029255,7]
[426834384,1782927047000,-356.83385081,0.00029256,2]
[426834379,1782927047000,-3460.0,0.00029254,2]
[426834388,1782927047000,-777.84471732,0.00029256,2]
[426834376,1782927047000,-180.82,0.00029254,2]
[426834382,1782927047000,-156.692,0.00029256,2]
[426834375,1782927047000,-500.0,0.00029252,2]
[426834372,1782927047000,-500.0,0.00029252,2]
[426834387,1782927047000,-497.82061908,0.00029256,2]
[426834378,1782927047000,-3460.0,0.00029254,2]
[426834374,1782927047000,-518.75125221,0.00029252,2]
[426834377,1782927047000,-6441.13,0.00029254,2]
[426834392,1782927050000,-76239.74913828,0.00029257,30]
[426834393,1782927129000,-191.44332425,0.000219,30]
[426834394,1782927542000,213.75354523,0.0001,2]
[426834395,1782927574000,186.27094656,0.0001,2]
[426834396,1782927634000,186.27094656,0.0001,2]
[426834397,1782927661000,186.27094656,0.0001,2]
[426834398,1782927692000,186.27094656,0.0001,28]
[426834404,1782928111000,436.26552435,0.0001,10]
[426834405,1782928111000,20153.71827531,7.6e-05,2]
[426834406,1782928112000,431.20690576,7.6e-05,2]
[426834407,1782928112000,441.9952798,0.0001,2]
[426834409,1782928232000,-109.10985615,0.00017,2]
[426834410,1782928232000,-550.26643594,0.00018,2]
[426834408,1782928232000,-469.94599327,0.00017,2]
[426834429,1782928238000,-153.58212169,0.0002,2]
[426834428,1782928238000,-414.90329407,0.0001958,2]
[426834427,1782928238000,-309.09801751,0.00018,2]
[426834431,1782928238000,-325.22742284,0.00026,30]
[426834432,1782928238000,-1385.59573854,0.00026,30]
[426834430,1782928238000,-1029.06114389,0.00021,2]
[426834448,1782928240000,-2784.42643806,0.00026,30]
[426834455,1782928240000,-6140.58272558,0.00026,30]
[426834839,1782929432000,-600.50917822,0.00028999,2]
[426834843,1782929432000,-500.0,0.00028999,2]
[426834841,1782929432000,-500.0,0.00028999,2]
[426834829,1782929432000,-171.221473,0.00027711,2]
[426834845,1782929432000,-500.0,0.00028999,2]
[426834826,1782929432000,-171.769677,0.00027397,7]
[426834840,1782929432000,-500.0,0.00028999,2]
[426834842,1782929432000,-500.0,0.00028999,2]
[426834838,1782929432000,-500.0,0.00028999,2]
[426834834,1782929432000,-306.0148,0.000279,3]
[426834828,1782929432000,-500.0,0.00027418,2]
[426834832,1782929432000,-171.221473,0.00027711,120]
[426834855,1782929432000,-500.0,0.00028999,2]
[426834836,1782929432000,-500.0,0.00028999,2]
[426834846,1782929432000,-500.0,0.00028999,2]
[426834844,1782929432000,-500.0,0.00028999,2]
[426834857,1782929432000,-204.51698722,0.00028999,2]
[426834859,1782929432000,-434.33951796,0.00029,2]
[426834858,1782929432000,-12149.85211784,0.00029,2]
[426834856,1782929432000,-500.0,0.00028999,7]
[426834851,1782929432000,-500.0,0.00028999,2]
[426834849,1782929432000,-500.0,0.00028999,2]
[426834850,1782929432000,-500.0,0.00028999,2]
[426834854,1782929432000,-387.97492346,0.00028999,2]
[426834848,1782929432000,-500.0,0.00028999,2]
[426834847,1782929432000,-500.0,0.00028999,2]
[426834852,1782929432000,-500.0,0.00028999,2]
[426834853,1782929432000,-400.0,0.00028999,2]
[426834932,1782929438000,-547.47242488,0.00029157,2]
[426834930,1782929438000,-243.69564658,0.00029147,2]
[426834928,1782929438000,-10428.02929719,0.00029,2]
[426834926,1782929438000,-871.71238038,0.00029,2]
[426834972,1782929443000,-1470.578,0.00029157,2]
[426835070,1782930632000,-180.42472336,0.000219,30]
[426835072,1782930632000,-275.13349126,0.000219,7]
[426835074,1782930632000,-97.23195275,0.00022338,7]
[426835170,1782930639000,-1000.0,0.00029231,2]
[426835168,1782930639000,-1000.0,0.00029231,2]
[426835166,1782930639000,-22104.85505997,0.00029157,2]
[426835159,1782930639000,-1463.1522768,0.00028659,2]
[426835163,1782930639000,-526.24431174,0.00029157,2]
[426835161,1782930639000,-7253.75516531,0.00028999,7]
[426835174,1782930639000,-1000.0,0.00029231,2]
[426835153,1782930639000,-1230.45360964,0.00026525,2]
[426835151,1782930639000,-1213.75232912,0.00026425,2]
[426835149,1782930639000,-233.6292152,0.000264,2]
[426835147,1782930639000,-433.4581101,0.00025813,2]
[426835155,1782930639000,-1233.40347944,0.00026625,2]
[426835172,1782930639000,-1000.0,0.00029231,2]
[426835145,1782930639000,-275.13349128,0.00024528,7]
[426835139,1782930639000,-177.90153851,0.00022338,7]
[426835143,1782930639000,-275.13349126,0.00023652,7]
[426835157,1782930639000,-1236.35334931,0.00026725,2]
[426835176,1782930639000,-430.0,0.00029231,2]
[426835188,1782930639000,-462.13,0.00029247,3]
[426835178,1782930639000,-166.66666666,0.00029236,30]
[426835141,1782930639000,-275.13349126,0.00022995,7]
[426835197,1782930639000,-500.0,0.00029256,2]
[426835193,1782930639000,-323.95431688,0.00029252,2]
[426835198,1782930639000,-500.0,0.00029256,2]
[426835195,1782930639000,-500.0,0.00029256,2]
[426835194,1782930639000,-215.55866606,0.00029252,2]
[426835200,1782930639000,-37221.98574641,0.00029257,30]
[426835180,1782930639000,-223.02964248,0.00029236,2]
[426835201,1782930639000,-6725.751725,0.00029257,30]
[426835192,1782930639000,-1049.43663184,0.00029252,2]
[426835189,1782930639000,-209.88732637,0.00029252,2]
[426835186,1782930639000,-154.04,0.00029247,3]
[426835184,1782930639000,-308.08,0.00029247,3]
[426835182,1782930639000,-616.15,0.00029247,3]
[426835190,1782930639000,-377.79718746,0.00029252,2]
[426835191,1782930639000,-671.63944438,0.00029252,2]
[426835199,1782930639000,-489.55,0.00029256,2]
[426835196,1782930639000,-500.0,0.00029256,2]
[426835211,1782930643000,-256.32608,0.00029257,30]
[426835212,1782930644000,-13224.8620238,0.00029257,30]
[426835213,1782930644000,-281.05019988,0.00029257,30]